[Event "EYCC Girls-U14 2019"]
[Site "Bratislava"]
[Date "2019.08.08"]
[Round "7.23"]
[White "Shuqja, Klean"]
[Black "Mroz, Lena"]
[Result "0-1"]
[ECO "B32"]
[WhiteElo "1829"]
[BlackElo "1566"]
[Annotator "NA"]
[PlyCount "98"]
[EventDate "2019.08.02"]
[EventType "swiss"]
[EventCountry "SVK"]
[SourceTitle "playchess.com"]
[Source "ChessBase"]
[SourceQuality "1"]
[TimeControl "40/5400+30:1800+30"]

1. e4 {[%emt 0:00:00]} c5 {[%emt 0:00:00]} 2. Nf3 {[%emt 0:00:00]} Nc6 {[%emt 0:00:00]} 3. d4 {[%emt 0:00:00]} cxd4 {[%emt 0:00:03]} 4. Nxd4 {[%emt 0:00:00]} Qb6 {[%emt 0:00:15]} 5. Nb3 {[%emt 0:00:48]} Nf6 {[%emt 0:00:17]} 6. Bd3 {[%emt 0:01:08]} e6 {[%emt 0:00:53]} 7. O-O {[%emt 0:02:49]} Be7 {[%emt 0:01:10]} 8. Nc3 {[%emt 0:01:20]} O-O {[%emt 0:01:21]} 9. Be3 {[%emt 0:01:49]} Qc7 {[%emt 0:00:28]} 10. f4 {[%emt 0:02:14]} d6 {[%emt 0:00:23]} 11. Qf3 {[%emt 0:01:16]} a6 {[%emt 0:07:21]} 12. Rae1 {[%emt 0:04:50]} Nb4 {[%emt 0:13:59]} 13. Qg3 {[%emt 0:03:58]} Nxd3 {[%emt 0:04:20]} 14. cxd3 {[%emt 0:00:14]} Re8 {[%emt 0:04:09]} 15. e5 {[%emt 0:06:55]} Nd7 {[%emt 0:05:57]} 16. d4 {[%emt 0:05:16]} Nb6 {[%emt 0:06:33]} 17. Rc1 {[%emt 0:08:00]} Qd8 {[%emt 0:10:13]} 18. Ne4 {[%emt 0:08:18]} Nd5 {[%emt 0:13:09]} 19. Bd2 {[%emt 0:03:19]} b6 {[%emt 0:02:49]} 20. Kh1 {[%emt 0:06:07]} f5 {[%emt 0:08:59]} 21. Nf2 {[%emt 0:07:14]} Bb7 {[%emt 0:03:11]} 22. Nd3 {[%emt 0:05:13]} a5 {[%emt 0:02:29]} 23. Na1 {[%emt 0:08:48]} Ba6 {[%emt 0:01:22]} 24. Rfd1 {[%emt 0:01:45]} Qd7 {[%emt 0:01:55]} 25. Bc3 {[%emt 0:11:02]} Rac8 {[%emt 0:00:54]} 26. h4 {[%emt 0:05:59]} Bc4 {[%emt 0:01:56]} 27. a3 {[%emt 0:01:19]} Bb5 {[%emt 0:01:20]} 28. h5 {[%emt 0:01:06]} Bf8 {[%emt 0:01:35]} 29. Kh2 {[%emt 0:03:08]} Qf7 {[%emt 0:00:09]} 30. Qf3 {[%emt 0:00:18]} Bc6 {[%emt 0:01:19]} 31. Qh3 {[%emt 0:00:21]} Ba4 {[%emt 0:00:40]} 32. Rg1 {[%emt 0:00:44]} Bb5 {[%emt 0:00:12]} 33. Rgd1 {[%emt 0:00:18]} Bxd3 {[%emt 0:00:10]} 34. Qxd3 {[%emt 0:00:31]} Qxh5+ {[%emt 0:00:40]} 35. Qh3 {[%emt 0:00:14]} Qxh3+ {[%emt 0:00:14]} 36. gxh3 {[%emt 0:00:38]} Nxf4 {[%emt 0:00:23]} 37. Nb3 {[%emt 0:00:58]} dxe5 {[%emt 0:00:56]} 38. dxe5 {[%emt 0:00:12]} Ne2 {[%emt 0:00:12]} 39. Rc2 {[%emt 0:00:11]} Nxc3 {[%emt 0:00:15]} 40. bxc3 {[%emt 0:00:00]} Bxa3 {[%emt 0:00:00]} 41. Nd4 {[%emt 0:09:33]} Bc5 {[%emt 0:10:30]} 42. Rb2 {[%emt 0:07:15]} Rcd8 {[%emt 0:02:15]} 43. Kg3 {[%emt 0:02:54]} Rd5 {[%emt 0:04:44]} 44. Re1 {[%emt 0:01:26]} Bxd4 {[%emt 0:09:14]} 45. cxd4 {[%emt 0:00:33]} b5 {[%emt 0:00:54]} 46. Rc1 {[%emt 0:00:38]} b4 {[%emt 0:02:31]} 47. Ra2 {[%emt 0:00:42]} b3 {[%emt 0:01:23]} 48. Rb2 {[%emt 0:00:37]} a4 {[%emt 0:00:33]} 49. Rc4 {[%emt 0:00:26]} Ra8 {[%emt 0:00:16]} 0-1

[Event "EYCC Girls-U14 2019"]
[Site "Bratislava"]
[Date "2019.08.08"]
[Round "7.24"]
[White "Gasparyan, Milena"]
[Black "Ruseva, Eva"]
[Result "0-1"]
[ECO "C03"]
[WhiteElo "1660"]
[BlackElo "1796"]
[Annotator "NA"]
[PlyCount "95"]
[EventDate "2019.08.02"]
[EventType "swiss"]
[EventCountry "SVK"]
[SourceTitle "playchess.com"]
[Source "ChessBase"]
[SourceQuality "1"]
[TimeControl "40/5400+30:1800+30"]

1. e4 {[%emt 0:00:00]} e6 {[%emt 0:00:00]} 2. d4 {[%emt 0:00:00]} d5 {[%emt 0:00:00]} 3. Nd2 {[%emt 0:00:00]} Be7 {[%emt 0:00:00]} 4. Ngf3 {[%emt 0:00:01]} Nf6 {[%emt 0:00:05]} 5. e5 {[%emt 0:00:04]} Nfd7 {[%emt 0:00:05]} 6. Bd3 {[%emt 0:00:10]} c5 {[%emt 0:00:06]} 7. c3 {[%emt 0:00:07]} Nc6 {[%emt 0:00:06]} 8. O-O {[%emt 0:00:47]} g5 {[%emt 0:00:29]} 9. dxc5 {[%emt 0:01:05]} Nxc5 {[%emt 0:00:13]} 10. Bb5 {[%emt 0:01:24]} Nd7 {[%emt 0:00:41]} 11. c4 {[%emt 0:16:15]} g4 {[%emt 0:06:32]} 12. cxd5 {[%emt 0:18:37]} exd5 {[%emt 0:00:28]} 13. Ne1 {[%emt 0:08:28]} Ndxe5 {[%emt 0:04:40]} 14. Qe2 {[%emt 0:02:00]} Bd7 {[%emt 0:05:42]} 15. Nd3 {[%emt 0:05:54]} Nxd3 {[%emt 0:03:20]} 16. Qxd3 {[%emt 0:02:32]} Nb4 {[%emt 0:07:48]} 17. Qc3 {[%emt 0:08:09]} O-O {[%emt 0:01:25]} 18. Bxd7 {[%emt 0:01:33]} Qxd7 {[%emt 0:00:27]} 19. Nb3 {[%emt 0:02:47]} Rac8 {[%emt 0:05:58]} 20. Qg3 {[%emt 0:00:25]} Nc2 {[%emt 0:04:40]} 21. Rb1 {[%emt 0:01:26]} Bd6 {[%emt 0:00:49]} 22. Qh4 {[%emt 0:01:42]} Qf5 {[%emt 0:02:24]} 23. Bh6 {[%emt 0:04:52]} Rfd8 {[%emt 0:05:16]} 24. f3 {[%emt 0:00:49]} g3 {[%emt 0:11:25]} 25. hxg3 {[%emt 0:00:16]} Re8 {[%emt 0:02:46]} 26. g4 {[%emt 0:05:05]} Qg6 {[%emt 0:00:46]} 27. Rbd1 {[%emt 0:04:20]} d4 {[%emt 0:02:55]} 28. Kh1 {[%emt 0:01:15]} Ne3 {[%emt 0:01:18]} 29. Nxd4 {[%emt 0:03:36]} Nxd1 {[%emt 0:03:26]} 30. Rxd1 {[%emt 0:00:08]} Be7 {[%emt 0:01:05]} 31. Qh2 {[%emt 0:03:27]} Red8 {[%emt 0:04:30]} 32. Qf4 {[%emt 0:01:30]} Rc4 {[%emt 0:08:38]} 33. b3 {[%emt 0:03:09]} Rcxd4 {[%emt 0:00:32]} 34. Rxd4 {[%emt 0:00:14]} Rxd4 {[%emt 0:00:18]} 35. Qxd4 {[%emt 0:00:05]} Qxh6+ {[%emt 0:00:05]} 36. Kg1 {[%emt 0:00:07]} Qb6 {[%emt 0:00:20]} 37. Qxb6 {[%emt 0:01:34]} axb6 {[%emt 0:00:06]} 38. Kf2 {[%emt 0:00:03]} Kg7 {[%emt 0:02:04]} 39. Ke3 {[%emt 0:00:26]} Bc5+ {[%emt 0:01:12]} 40. Ke4 {[%emt 0:00:00]} Kf6 {[%emt 0:00:00]} 41. f4 {[%emt 0:01:02]} Ke6 {[%emt 0:01:15]} 42. g5 {[%emt 0:00:15]} Bg1 {[%emt 0:01:06]} 43. g3 {[%emt 0:00:43]} Kd6 {[%emt 0:00:27]} 44. Kf5 {[%emt 0:00:52]} Bd4 {[%emt 0:00:12]} 45. Ke4 {[%emt 0:00:19]} Kc5 {[%emt 0:00:44]} 46. a3 {[%emt 0:01:12]} Bb2 {[%emt 0:00:46]} 47. Kf5 {[%emt 0:00:06]} Kd5 {[%emt 0:00:27]} 48. a4 {[%emt 0:00:12] Ke5+} 0-1

[Event "EYCC Girls-U14 2019"]
[Site "Bratislava"]
[Date "2019.08.09"]
[Round "8.1"]
[White "Nur-Mukhametova, Alisa"]
[Black "Yakimova, Mariya"]
[Result "1/2-1/2"]
[ECO "E63"]
[WhiteElo "2126"]
[BlackElo "2250"]
[Annotator "NA"]
[PlyCount "89"]
[EventDate "2019.08.02"]
[EventType "swiss"]
[EventCountry "SVK"]
[SourceTitle "playchess.com"]
[Source "ChessBase"]
[SourceQuality "1"]
[TimeControl "40/5400+30:1800+30"]

1. Nf3 {[%emt 0:00:00]} Nf6 {[%emt 0:00:00]} 2. g3 {[%emt 0:00:00]} g6 {[%emt 0:00:00]} 3. Bg2 {[%emt 0:00:00]} Bg7 {[%emt 0:00:00]} 4. O-O {[%emt 0:00:03]} O-O {[%emt 0:00:00]} 5. d4 {[%emt 0:00:10]} d6 {[%emt 0:00:00]} 6. c4 {[%emt 0:00:38]} Nc6 {[%emt 0:00:04]} 7. Nc3 {[%emt 0:00:46]} a6 {[%emt 0:00:05]} 8. Bf4 {[%emt 0:07:35]} Rb8 {[%emt 0:00:11]} 9. Rc1 {[%emt 0:01:03]} Nh5 {[%emt 0:19:45]} 10. Be3 {[%emt 0:04:33]} Bd7 {[%emt 0:02:05]} 11. b3 {[%emt 0:10:05]} e5 {[%emt 0:07:44]} 12. dxe5 {[%emt 0:03:19]} dxe5 {[%emt 0:00:03]} 13. Bg5 {[%emt 0:04:55]} Qe8 {[%emt 0:00:09]} 14. e4 {[%emt 0:06:55]} f6 {[%emt 0:04:20]} 15. Be3 {[%emt 0:03:37]} Rd8 {[%emt 0:00:17]} 16. Nd5 {[%emt 0:02:05]} Be6 {[%emt 0:00:13]} 17. Qc2 {[%emt 0:02:22]} Rf7 {[%emt 0:00:06]} 18. a3 {[%emt 0:01:56]} Rfd7 {[%emt 0:09:24]} 19. h3 {[%emt 0:05:22]} Qf8 {[%emt 0:04:39]} 20. b4 {[%emt 0:02:36]} g5 {[%emt 0:06:30]} 21. Qe2 {[%emt 0:08:52]} Qe8 {[%emt 0:01:57]} 22. Nh2 {[%emt 0:03:22]} Nd4 {[%emt 0:04:13]} 23. Bxd4 {[%emt 0:01:00]} exd4 {[%emt 0:00:03]} 24. Bf3 {[%emt 0:00:45]} Bf7 {[%emt 0:01:02]} 25. Bg4 {[%emt 0:01:37]} c6 {[%emt 0:00:24]} 26. Bxd7 {[%emt 0:06:02]} Rxd7 {[%emt 0:00:50]} 27. Nb6 {[%emt 0:00:41]} Re7 {[%emt 0:00:11]} 28. Qg4 {[%emt 0:07:18]} Be6 {[%emt 0:04:49]} 29. Qf3 {[%emt 0:00:59]} Bxh3 {[%emt 0:00:07]} 30. Rfe1 {[%emt 0:00:16]} f5 {[%emt 0:00:37]} 31. e5 {[%emt 0:02:32]} Bxe5 {[%emt 0:04:54]} 32. Nc8 {[%emt 0:09:04]} Re6 {[%emt 0:07:22]} 33. c5 {[%emt 0:01:17]} Nf6 {[%emt 0:10:13]} 34. Nd6 {[%emt 0:01:25]} Bxd6 {[%emt 0:02:22]} 35. Rxe6 {[%emt 0:00:02]} Qxe6 {[%emt 0:00:09]} 36. cxd6 {[%emt 0:00:11]} Qxd6 {[%emt 0:01:08]} 37. Qb3+ {[%emt 0:01:02]} Kg7 {[%emt 0:01:02]} 38. Nf3 {[%emt 0:01:20]} h6 {[%emt 0:07:47]} 39. Rd1 {[%emt 0:02:07]} Bg4 {[%emt 0:01:55]} 40. Rxd4 {[%emt 0:00:00]} Nd5 {[%emt 0:00:00]} 41. Rd2 {[%emt 0:11:08]} Qf6 {[%emt 0:03:58]} 42. Kg2 {[%emt 0:03:58]} f4 {[%emt 0:05:34]} 43. Qb2 {[%emt 0:04:33]} Nc3 {[%emt 0:02:10]} 44. Rd3 {[%emt 0:02:32]} Nd5 {[%emt 0:02:55]} 45. Qxf6+ {[%emt 0:00:51]} 1/2-1/2

[Event "EYCC Girls-U14 2019"]
[Site "Bratislava"]
[Date "2019.08.09"]
[Round "8.2"]
[White "Hrebenshchykova, Yelyzaveta"]
[Black "Allahverdiyeva, Ayan"]
[Result "1/2-1/2"]
[ECO "A06"]
[WhiteElo "1955"]
[BlackElo "2114"]
[Annotator "NA"]
[PlyCount "108"]
[EventDate "2019.08.02"]
[EventType "swiss"]
[EventCountry "SVK"]
[SourceTitle "playchess.com"]
[Source "ChessBase"]
[SourceQuality "1"]
[TimeControl "40/5400+30:1800+30"]

1. Nf3 {[%emt 0:00:00]} d5 {[%emt 0:00:35]} 2. e3 {[%emt 0:00:00]} Nf6 {[%emt 0:00:11]} 3. c4 {[%emt 0:05:16]} c6 {[%emt 0:00:38]} 4. b3 {[%emt 0:11:29]} e6 {[%emt 0:02:34]} 5. Bb2 {[%emt 0:00:14]} Nbd7 {[%emt 0:00:05]} 6. Be2 {[%emt 0:07:01]} Bd6 {[%emt 0:00:23]} 7. O-O {[%emt 0:02:38]} e5 {[%emt 0:02:22]} 8. d3 {[%emt 0:07:46]} O-O {[%emt 0:12:03]} 9. c5 {[%emt 0:12:02]} Bc7 {[%emt 0:00:54]} 10. b4 {[%emt 0:01:29]} e4 {[%emt 0:04:03]} 11. dxe4 {[%emt 0:05:21]} dxe4 {[%emt 0:04:58]} 12. Nd4 {[%emt 0:00:52]} Nd5 {[%emt 0:01:28]} 13. a3 {[%emt 0:04:52]} Ne5 {[%emt 0:03:52]} 14. Nc3 {[%emt 0:02:36]} Nxc3 {[%emt 0:02:56]} 15. Bxc3 {[%emt 0:00:05]} Qh4 {[%emt 0:00:05]} 16. g3 {[%emt 0:06:17]} Qh3 {[%emt 0:01:07]} 17. Qc2 {[%emt 0:00:23]} Ng4 {[%emt 0:00:32]} 18. Bxg4 {[%emt 0:00:13]} Qxg4 {[%emt 0:00:05]} 19. b5 {[%emt 0:12:10]} Qg6 {[%emt 0:01:35]} 20. f4 {[%emt 0:04:28]} Bh3 {[%emt 0:02:32]} 21. Rfb1 {[%emt 0:01:47]} Bd8 {[%emt 0:04:48]} 22. bxc6 {[%emt 0:02:45]} bxc6 {[%emt 0:00:04]} 23. Qa4 {[%emt 0:07:01]} Bf6 {[%emt 0:02:55]} 24. Rb7 {[%emt 0:01:45]} Qh5 {[%emt 0:01:03]} 25. Qd1 {[%emt 0:01:51]} Qxc5 {[%emt 0:06:05]} 26. Bb4 {[%emt 0:00:06]} Qd5 {[%emt 0:00:02]} 27. Bxf8 {[%emt 0:00:13]} Rxf8 {[%emt 0:00:06]} 28. Rab1 {[%emt 0:01:16]} c5 {[%emt 0:02:13]} 29. Nc2 {[%emt 0:00:15]} Qd3 {[%emt 0:03:34]} 30. R7b3 {[%emt 0:01:13]} Qc4 {[%emt 0:00:47]} 31. Rb8 {[%emt 0:00:09]} g6 {[%emt 0:01:03]} 32. Rxf8+ {[%emt 0:00:31]} Kxf8 {[%emt 0:00:05]} 33. Kf2 {[%emt 0:00:44]} Bg4 {[%emt 0:00:34]} 34. Rb8+ {[%emt 0:01:01]} Kg7 {[%emt 0:00:18]} 35. Qxg4 {[%emt 0:00:07]} Qxc2+ {[%emt 0:00:04]} 36. Qe2 {[%emt 0:00:04]} Qc1 {[%emt 0:00:39]} 37. Rc8 {[%emt 0:01:38]} Qh1 {[%emt 0:00:51]} 38. Rxc5 {[%emt 0:00:26]} Qxh2+ {[%emt 0:00:26]} 39. Ke1 {[%emt 0:00:43]} Qxg3+ {[%emt 0:00:04]} 40. Kd2 {[%emt 0:00:00]} Bb2 {[%emt 0:00:00]} 41. Rc7 {[%emt 0:13:10]} Bxa3 {[%emt 0:04:14]} 42. Rxa7 {[%emt 0:02:30]} Bb4+ {[%emt 0:00:31]} 43. Kc2 {[%emt 0:00:19]} Bc5 {[%emt 0:01:03]} 44. Rxf7+ {[%emt 0:05:09]} Kxf7 {[%emt 0:00:41]} 45. Qc4+ {[%emt 0:00:04]} Kg7 {[%emt 0:05:02]} 46. Qxc5 {[%emt 0:00:18]} Kh6 {[%emt 0:00:46]} 47. Kc3 {[%emt 0:01:19]} Qg4 {[%emt 0:00:45]} 48. Kd4 {[%emt 0:06:24]} Qf5 {[%emt 0:00:05]} 49. Qe7 {[%emt 0:01:47]} Kh5 {[%emt 0:01:49]} 50. Qxh7+ {[%emt 0:00:10]} Kg4 {[%emt 0:00:05]} 51. Qh2 {[%emt 0:01:24]} Qd7+ {[%emt 0:00:26]} 52. Kxe4 {[%emt 0:00:13]} Qe6+ {[%emt 0:00:02]} 53. Kd4 {[%emt 0:00:17]} Qd6+ {[%emt 0:00:02]} 54. Ke4 {[%emt 0:00:40]} Qe6+ {[%emt 0:00:09]} 1/2-1/2

[Event "EYCC Girls-U14 2019"]
[Site "Bratislava"]
[Date "2019.08.09"]
[Round "8.3"]
[White "Roebers, Eline"]
[Black "Kirchei, Viktoriia"]
[Result "0-1"]
[ECO "B90"]
[WhiteElo "2069"]
[BlackElo "2006"]
[Annotator "NA"]
[PlyCount "116"]
[EventDate "2019.08.02"]
[EventType "swiss"]
[EventCountry "SVK"]
[SourceTitle "playchess.com"]
[Source "ChessBase"]
[SourceQuality "1"]
[TimeControl "40/5400+30:1800+30"]

1. e4 {[%emt 0:00:00]} c5 {[%emt 0:00:00]} 2. Nf3 {[%emt 0:00:00]} d6 {[%emt 0:00:00]} 3. d4 {[%emt 0:00:04]} cxd4 {[%emt 0:00:09]} 4. Nxd4 {[%emt 0:00:06]} Nf6 {[%emt 0:00:14]} 5. Nc3 {[%emt 0:00:23]} a6 {[%emt 0:00:22]} 6. h3 {[%emt 0:00:53]} e5 {[%emt 0:01:40]} 7. Nb3 {[%emt 0:00:35]} h5 {[%emt 0:00:09]} 8. Be3 {[%emt 0:05:57]} Be7 {[%emt 0:02:51]} 9. Qd2 {[%emt 0:02:13]} Be6 {[%emt 0:06:00]} 10. g3 {[%emt 0:10:18]} Nbd7 {[%emt 0:04:37]} 11. f4 {[%emt 0:04:24]} b5 {[%emt 0:11:27]} 12. Bg2 {[%emt 0:13:54]} Rc8 {[%emt 0:03:12]} 13. O-O {[%emt 0:07:59]} Qc7 {[%emt 0:04:52]} 14. f5 {[%emt 0:09:51]} Bc4 {[%emt 0:01:24]} 15. Rf2 {[%emt 0:00:58]} b4 {[%emt 0:04:31]} 16. Nd1 {[%emt 0:07:59]} Nc5 {[%emt 0:02:09]} 17. Nxc5 {[%emt 0:07:48]} dxc5 {[%emt 0:00:06]} 18. b3 {[%emt 0:01:05]} Bb5 {[%emt 0:04:22]} 19. Bg5 {[%emt 0:10:57]} c4 {[%emt 0:02:19]} 20. c3 {[%emt 0:05:12]} cxb3 {[%emt 0:10:45]} 21. cxb4 {[%emt 0:01:43]} Qc4 {[%emt 0:11:50]} 22. Qb2 {[%emt 0:08:01]} Qxb4 {[%emt 0:02:23]} 23. Bd2 {[%emt 0:00:33]} Qd6 {[%emt 0:04:53]} 24. axb3 {[%emt 0:00:25]} O-O {[%emt 0:00:43]} 25. Bc3 {[%emt 0:00:25]} Nd7 {[%emt 0:07:38]} 26. Rd2 {[%emt 0:00:39]} Qb6+ {[%emt 0:00:36]} 27. Kh2 {[%emt 0:00:11]} h4 {[%emt 0:01:26]} 28. g4 {[%emt 0:00:50]} Bg5 {[%emt 0:01:08]} 29. Rf2 {[%emt 0:00:29]} Nc5 {[%emt 0:00:47]} 30. Bxe5 {[%emt 0:00:32]} Nd3 {[%emt 0:00:07]} 31. Qd4 {[%emt 0:00:20]} Qxd4 {[%emt 0:00:35]} 32. Bxd4 {[%emt 0:00:05]} Nxf2 {[%emt 0:00:05]} 33. Nxf2 {[%emt 0:00:49]} Rfd8 {[%emt 0:00:45]} 34. Rd1 {[%emt 0:00:49]} Rc2 {[%emt 0:01:02]} 35. Be3 {[%emt 0:00:24]} Rxd1 {[%emt 0:00:51]} 36. Nxd1 {[%emt 0:00:04]} Bxe3 {[%emt 0:00:48]} 37. Nxe3 {[%emt 0:00:04]} Rc3 {[%emt 0:00:32]} 38. Nd5 {[%emt 0:00:08]} Rxb3 {[%emt 0:00:38]} 39. e5 {[%emt 0:00:28]} Rb2 {[%emt 0:00:44]} 40. Kg1 {[%emt 0:00:00]} Rxg2+ {[%emt 0:00:00]} 41. Kxg2 {[%emt 0:00:38]} Bc6 {[%emt 0:00:19]} 42. Kf2 {[%emt 0:00:17]} Bxd5 {[%emt 0:00:04]} 43. g5 {[%emt 0:00:10]} a5 {[%emt 0:00:13]} 44. Ke3 {[%emt 0:00:16]} a4 {[%emt 0:00:29]} 45. Kd4 {[%emt 0:00:04]} a3 {[%emt 0:01:17]} 46. Kc3 {[%emt 0:00:07]} Bg2 {[%emt 0:00:20]} 47. Kb3 {[%emt 0:00:06]} Bxh3 {[%emt 0:00:08]} 48. Kxa3 {[%emt 0:00:07]} Bxf5 {[%emt 0:00:06]} 49. Kb3 {[%emt 0:00:04]} h3 {[%emt 0:00:05]} 50. Kc3 {[%emt 0:00:06]} h2 {[%emt 0:00:02]} 51. Kd2 {[%emt 0:00:03]} h1=Q {[%emt 0:00:08]} 52. g6 {[%emt 0:00:06]} Qd5+ {[%emt 0:00:08]} 53. Ke3 {[%emt 0:00:04]} Qxe5+ {[%emt 0:00:05]} 54. Kf2 {[%emt 0:00:06]} Bxg6 {[%emt 0:00:10]} 55. Kf1 {[%emt 0:00:07]} Qb2 {[%emt 0:00:15]} 56. Kg1 {[%emt 0:00:05]} Qe2 {[%emt 0:00:10]} 57. Kh1 {[%emt 0:00:03]} Be4+ {[%emt 0:00:03]} 58. Kg1 {[%emt 0:00:05]} Qg2# {[%emt 0:00:03]} 0-1

[Event "EYCC Girls-U14 2019"]
[Site "Bratislava"]
[Date "2019.08.09"]
[Round "8.4"]
[White "Zeliantsova, Kseniya"]
[Black "Bashylina, Luisa"]
[Result "1-0"]
[ECO "B28"]
[WhiteElo "1907"]
[BlackElo "1989"]
[Annotator "NA"]
[PlyCount "65"]
[EventDate "2019.08.02"]
[EventType "swiss"]
[EventCountry "SVK"]
[SourceTitle "playchess.com"]
[Source "ChessBase"]
[SourceQuality "1"]
[TimeControl "40/5400+30:1800+30"]

1. e4 {[%emt 0:00:00]} c5 {[%emt 0:00:00]} 2. Nf3 {[%emt 0:00:00]} a6 {[%emt 0:00:00]} 3. c4 {[%emt 0:00:00]} Nc6 {[%emt 0:00:13]} 4. d4 {[%emt 0:00:28]} cxd4 {[%emt 0:00:23]} 5. Nxd4 {[%emt 0:00:06]} e5 {[%emt 0:00:31]} 6. Nxc6 {[%emt 0:01:09]} bxc6 {[%emt 0:00:06]} 7. Nc3 {[%emt 0:00:10]} Nf6 {[%emt 0:00:52]} 8. Bg5 {[%emt 0:05:07]} Be7 {[%emt 0:00:42]} 9. Bd3 {[%emt 0:03:48]} Rb8 {[%emt 0:05:40]} 10. Rb1 {[%emt 0:07:02]} O-O {[%emt 0:09:53]} 11. O-O {[%emt 0:02:46]} d6 {[%emt 0:04:43]} 12. Qd2 {[%emt 0:09:19]} h6 {[%emt 0:07:28]} 13. Bh4 {[%emt 0:04:02]} Bb7 {[%emt 0:05:46]} 14. Rbd1 {[%emt 0:01:40]} Qc7 {[%emt 0:04:20]} 15. Bc2 {[%emt 0:16:10]} Rfd8 {[%emt 0:03:26]} 16. Qe2 {[%emt 0:03:52]} Bc8 {[%emt 0:09:54]} 17. b3 {[%emt 0:06:25]} Qa5 {[%emt 0:09:38]} 18. Rd3 {[%emt 0:04:38]} Kh7 {[%emt 0:08:29]} 19. f4 {[%emt 0:06:05]} exf4 {[%emt 0:01:27]} 20. e5 {[%emt 0:00:16]} g6 {[%emt 0:09:25]} 21. Bxf6 {[%emt 0:02:10]} Bxf6 {[%emt 0:00:13]} 22. exf6 {[%emt 0:00:04]} Bf5 {[%emt 0:00:41]} 23. Ne4 {[%emt 0:06:42]} d5 {[%emt 0:02:08]} 24. Ng5+ {[%emt 0:04:23]} hxg5 {[%emt 0:04:32]} 25. Rh3+ {[%emt 0:01:07]} Bxh3 {[%emt 0:01:28]} 26. Qh5+ {[%emt 0:00:05]} Kg8 {[%emt 0:00:17]} 27. Bxg6 {[%emt 0:00:13]} Qc5+ {[%emt 0:02:32]} 28. Kh1 {[%emt 0:00:07]} Bxg2+ {[%emt 0:00:09]} 29. Kxg2 {[%emt 0:00:04]} f3+ {[%emt 0:01:10]} 30. Kh1 {[%emt 0:00:19]} fxg6 {[%emt 0:02:54]} 31. Qxg6+ {[%emt 0:00:04]} Kf8 {[%emt 0:00:12]} 32. Qg7+ {[%emt 0:00:04]} Ke8 {[%emt 0:00:10]} 33. Re1+ {[%emt 0:00:05]} 1-0

[Event "EYCC Girls-U14 2019"]
[Site "Bratislava"]
[Date "2019.08.09"]
[Round "8.5"]
[White "Hakobyan, Astghik"]
[Black "Mihelic, Vesna"]
[Result "1-0"]
[ECO "C91"]
[WhiteElo "1863"]
[BlackElo "1844"]
[Annotator "NA"]
[PlyCount "129"]
[EventDate "2019.08.02"]
[EventType "swiss"]
[EventCountry "SVK"]
[SourceTitle "playchess.com"]
[Source "ChessBase"]
[SourceQuality "1"]
[TimeControl "40/5400+30:1800+30"]

1. e4 {[%emt 0:00:00]} e5 {[%emt 0:00:00]} 2. Nf3 {[%emt 0:00:00]} Nc6 {[%emt 0:00:00]} 3. Bb5 {[%emt 0:00:00]} a6 {[%emt 0:00:00]} 4. Ba4 {[%emt 0:00:00]} Nf6 {[%emt 0:00:00]} 5. O-O {[%emt 0:00:03]} Be7 {[%emt 0:00:04]} 6. Re1 {[%emt 0:00:05]} b5 {[%emt 0:00:05]} 7. Bb3 {[%emt 0:00:07]} d6 {[%emt 0:00:07]} 8. c3 {[%emt 0:00:05]} O-O {[%emt 0:00:08]} 9. d4 {[%emt 0:00:04]} Bg4 {[%emt 0:02:08]} 10. d5 {[%emt 0:02:20]} Na5 {[%emt 0:02:02]} 11. Bc2 {[%emt 0:00:01]} c5 {[%emt 0:05:30]} 12. Nbd2 {[%emt 0:05:15]} Ne8 {[%emt 0:10:22]} 13. h3 {[%emt 0:02:01]} Bd7 {[%emt 0:04:18]} 14. Nf1 {[%emt 0:05:33]} Nc7 {[%emt 0:09:49]} 15. Ng3 {[%emt 0:07:48]} g6 {[%emt 0:06:48]} 16. b3 {[%emt 0:17:38]} Bf6 17. Bh6 Bg7 {[%emt 0:02:57]} 18. Qd2 {[%emt 0:01:17]} Nb7 {[%emt 0:02:37]} 19. Nh2 {[%emt 0:03:14]} Ne8 {[%emt 0:16:19]} 20. Rf1 {[%emt 0:05:28]} Bxh6 {[%emt 0:04:53]} 21. Qxh6 {[%emt 0:00:02]} Qf6 {[%emt 0:00:21]} 22. Qe3 {[%emt 0:01:34]} Qf4 {[%emt 0:04:45]} 23. Qe1 {[%emt 0:04:19]} f5 {[%emt 0:05:37]} 24. exf5 {[%emt 0:06:20]} gxf5 {[%emt 0:01:33]} 25. Ne2 {[%emt 0:07:37]} Qh6 {[%emt 0:00:57]} 26. c4 {[%emt 0:04:51]} Kh8 {[%emt 0:02:19]} 27. f4 {[%emt 0:02:09]} e4 {[%emt 0:00:35]} 28. Kh1 {[%emt 0:01:28]} Rg8 {[%emt 0:01:09]} 29. Rg1 {[%emt 0:03:16]} Nf6 {[%emt 0:01:06]} 30. Qc3 {[%emt 0:04:34]} b4 {[%emt 0:00:54]} 31. Qe3 {[%emt 0:00:58]} Rg7 {[%emt 0:01:39]} 32. a3 {[%emt 0:00:18]} Rag8 {[%emt 0:04:14]} 33. axb4 {[%emt 0:01:19]} Nh5 {[%emt 0:03:33]} 34. Nf1 {[%emt 0:02:14]} Nf6 {[%emt 0:01:52]} 35. Nh2 {[%emt 0:01:20]} Nh5 {[%emt 0:01:56]} 36. bxc5 {[%emt 0:05:20]} dxc5 {[%emt 0:00:02]} 37. Qf2 {[%emt 0:02:24]} Rg3 {[%emt 0:02:19]} 38. Nf1 {[%emt 0:04:23]} R3g4 {[%emt 0:02:13]} 39. Ne3 {[%emt 0:00:08]} Ng3+ {[%emt 0:02:06]} 40. Nxg3 {[%emt 0:00:00]} Rxg3 {[%emt 0:00:00]} 41. Kh2 {[%emt 0:08:25]} Qh4 {[%emt 0:06:08]} 42. Rgf1 {[%emt 0:01:02]} a5 {[%emt 0:00:52]} 43. Ra2 {[%emt 0:05:08]} Bc8 {[%emt 0:05:18]} 44. Bd1 {[%emt 0:01:20]} Bd7 {[%emt 0:02:01]} 45. Rg1 {[%emt 0:06:08]} Qf6 {[%emt 0:04:51]} 46. Qxg3 {[%emt 0:02:28]} Rxg3 {[%emt 0:00:02]} 47. Kxg3 {[%emt 0:00:00]} Qd4 {[%emt 0:04:07]} 48. Re1 {[%emt 0:01:35]} Qc3 {[%emt 0:01:14]} 49. Kf2 {[%emt 0:00:13]} Qf6 {[%emt 0:01:13]} 50. g3 {[%emt 0:00:41]} Be8 {[%emt 0:01:27]} 51. Be2 {[%emt 0:03:09]} Bg6 {[%emt 0:02:15]} 52. Rd1 {[%emt 0:01:21]} Qb6 {[%emt 0:01:20]} 53. Rb1 {[%emt 0:01:48]} Nd6 {[%emt 0:00:39]} 54. g4 {[%emt 0:00:37]} Qd8 {[%emt 0:01:06]} 55. g5 {[%emt 0:02:19]} Nb7 {[%emt 0:00:59]} 56. h4 {[%emt 0:00:42]} Qc7 {[%emt 0:01:48]} 57. Kg3 {[%emt 0:00:30]} Qd7 {[%emt 0:01:20]} 58. h5 {[%emt 0:01:44]} Bf7 {[%emt 0:00:01]} 59. Nxf5 {[%emt 0:01:08]} Bxd5 {[%emt 0:01:20]} 60. Rd1 {[%emt 0:00:46]} Qxf5 {[%emt 0:00:18]} 61. Rxd5 {[%emt 0:00:02]} Qf7 {[%emt 0:01:00]} 62. Rad2 {[%emt 0:00:25]} Qe6 {[%emt 0:01:22]} 63. Re5 {[%emt 0:00:42]} Qc6 {[%emt 0:00:18]} 64. Rdd5 {[%emt 0:00:24]} Qb6 {[%emt 0:01:02]} 65. Re8+ {[%emt 0:00:07]} 1-0